[Event "Titled Tuesday Blitz July 4 Late 2023"]
[White "Caruana, Fabiano"]
[Black "Ashraf, Artin"]
[WhiteFideId "2020009"]
[BlackFideId "22514805"]
[WhiteElo "3098"]
[BlackElo "2717"]
[Result "1-0"]
[Round "3"]
[TimeControl "180+2"]
[Date "2023.07.04"]
[WhiteClock "0:00:13"]
[BlackClock "0:00:01"]
[Board "6"]

1. c4 {[%clk 0:03:00]}  c5 {[%clk 0:02:56]} 2. g3 {[%clk 0:03:00]}  g6 {[%clk 0:02:56]} 3. Bg2 {[%clk 0:03:00]}  Bg7 {[%clk 0:02:57]} 4. Nc3 {[%clk 0:03:01]}  Nf6 {[%clk 0:02:54]} 5. e3 {[%clk 0:03:00]}  O-O {[%clk 0:02:46]} 6. Nge2 {[%clk 0:02:59]}  Nc6 {[%clk 0:02:42]} 7. d4 {[%clk 0:02:59]}  cxd4 {[%clk 0:02:42]} 8. exd4 {[%clk 0:03:00]}  d5 {[%clk 0:02:41]} 9. cxd5 {[%clk 0:02:55]}  Nb4 {[%clk 0:02:40]} 10. O-O {[%clk 0:02:55]}  Nfxd5 {[%clk 0:02:28]} 11. Nf4 {[%clk 0:02:52]}  Nxf4 {[%clk 0:02:12]} 12. Bxf4 {[%clk 0:02:53]}  Qxd4 {[%clk 0:02:12]} 13. Qe2 {[%clk 0:02:48]}  e5 {[%clk 0:02:04]} 14. Rfd1 {[%clk 0:02:38]}  Qb6 {[%clk 0:01:55]} 15. Be3 {[%clk 0:02:39]}  Qa6 {[%clk 0:01:45]} 16. Qxa6 {[%clk 0:02:38]}  Nxa6 {[%clk 0:01:46]} 17. Nb5 {[%clk 0:02:39]}  e4 {[%clk 0:01:27]} 18. Bxe4 {[%clk 0:02:37]}  Bg4 {[%clk 0:01:04]} 19. Rd2 {[%clk 0:02:36]}  Rad8 {[%clk 0:00:52]} 20. Rc1 {[%clk 0:01:58]}  Rxd2 {[%clk 0:00:46]} 21. Bxd2 {[%clk 0:01:59]}  Bxb2 {[%clk 0:00:28]} 22. Rc2 {[%clk 0:01:58]}  Bg7 {[%clk 0:00:07]} 23. Bxb7 {[%clk 0:01:58]}  Nb8 {[%clk 0:00:07]} 24. Nxa7 {[%clk 0:01:49]}  Bf5 {[%clk 0:00:06]} 25. Rc1 {[%clk 0:01:44]}  Nd7 {[%clk 0:00:07]} 26. Nc6 {[%clk 0:01:42]}  Kh8 {[%clk 0:00:03]} 27. Re1 {[%clk 0:01:40]}  Nc5 {[%clk 0:00:02]} 28. Na5 {[%clk 0:00:46]}  Rd8 {[%clk 0:00:02]} 29. Bg5 {[%clk 0:00:41]}  Rb8 {[%clk 0:00:02]} 30. Bf4 {[%clk 0:00:34]}  Rd8 {[%clk 0:00:02]} 31. Bf3 {[%clk 0:00:31]}  Nd3 {[%clk 0:00:02]} 32. Rd1 {[%clk 0:00:32]}  Bd4 {[%clk 0:00:01]} 33. Be3 {[%clk 0:00:28]}  Bxe3 {[%clk 0:00:01]} 34. fxe3 {[%clk 0:00:29]}  Re8 {[%clk 0:00:01]} 35. e4 {[%clk 0:00:28]}  Ne5 {[%clk 0:00:02]} 36. exf5 {[%clk 0:00:26]}  Nxf3+ {[%clk 0:00:03]} 37. Kg2 {[%clk 0:00:26]}  Ng5 {[%clk 0:00:03]} 38. Rd2 {[%clk 0:00:22]}  gxf5 {[%clk 0:00:02]} 39. Nc6 {[%clk 0:00:23]}  Ne4 {[%clk 0:00:02]} 40. Rc2 {[%clk 0:00:21]}  Kg7 {[%clk 0:00:02]} 41. a4 {[%clk 0:00:21]}  Ra8 {[%clk 0:00:01]} 42. a5 {[%clk 0:00:22]}  Ra6 {[%clk 0:00:02]} 43. Kf3 {[%clk 0:00:20]}  Kf6 {[%clk 0:00:03]} 44. Kf4 {[%clk 0:00:18]}  Ng5 {[%clk 0:00:03]} 45. Ke3 {[%clk 0:00:17]}  Ne6 {[%clk 0:00:03]} 46. Rc1 {[%clk 0:00:15]}  h6 {[%clk 0:00:02]} 47. Kd3 {[%clk 0:00:14]}  Ng5 {[%clk 0:00:03]} 48. Rc2 {[%clk 0:00:12]}  Nf3 {[%clk 0:00:03]} 49. Ke3 {[%clk 0:00:11]}  Ne5 {[%clk 0:00:02]} 50. Nxe5 {[%clk 0:00:11]}  Kxe5 {[%clk 0:00:03]} 51. Rc5+ {[%clk 0:00:11]}  Ke6 {[%clk 0:00:03]} 52. Rb5 {[%clk 0:00:12]}  Ke7 {[%clk 0:00:02]} 53. Kf4 {[%clk 0:00:12]}  Rd6 {[%clk 0:00:01]} 54. Kxf5 {[%clk 0:00:11]}  Rd2 {[%clk 0:00:02]} 55. Rb7+ {[%clk 0:00:11]}  Kf8 {[%clk 0:00:02]} 56. a6 {[%clk 0:00:11]}  Ra2 {[%clk 0:00:02]} 57. a7 {[%clk 0:00:12]}  Kg7 {[%clk 0:00:02]} 58. Ke5 {[%clk 0:00:11]}  Ra5+ {[%clk 0:00:02]} 59. Kd6 {[%clk 0:00:12]}  Ra6+ {[%clk 0:00:01]} 60. Kc7 {[%clk 0:00:12]}  Ra1 {[%clk 0:00:01]} 61. Kb8 {[%clk 0:00:13]}  Rc1 {[%clk 0:00:02]} 62. a8=Q {[%clk 0:00:13]}  Rf1 {[%clk 0:00:01]} 63. Qa3 {[%clk 0:00:13]} 1-0


[Site "https://www.chess.com"]

[Event "Titled Tuesday Blitz July 4 Late 2023"]
[White "Kushko, Dmitriy"]
[Black "Mamedov, Rauf"]
[WhiteFideId "14162261"]
[BlackFideId "13401653"]
[WhiteElo "2714"]
[BlackElo "3048"]
[Result "0-1"]
[Round "3"]
[TimeControl "180+2"]
[Date "2023.07.04"]
[WhiteClock "0:00:08"]
[BlackClock "0:00:55"]
[Board "7"]

1. Nf3 {[%clk 0:03:00]}  c5 {[%clk 0:02:58]} 2. g3 {[%clk 0:02:59]}  g6 {[%clk 0:02:58]} 3. Bg2 {[%clk 0:03:00]}  Bg7 {[%clk 0:02:59]} 4. c4 {[%clk 0:03:00]}  Nc6 {[%clk 0:02:59]} 5. Nc3 {[%clk 0:03:01]}  d6 {[%clk 0:02:59]} 6. a3 {[%clk 0:03:01]}  Nf6 {[%clk 0:02:54]} 7. Rb1 {[%clk 0:02:58]}  a5 {[%clk 0:02:46]} 8. d3 {[%clk 0:02:53]}  O-O {[%clk 0:02:45]} 9. O-O {[%clk 0:02:53]}  e5 {[%clk 0:02:42]} 10. Ne1 {[%clk 0:02:53]}  h6 {[%clk 0:02:38]} 11. Nc2 {[%clk 0:02:52]}  Bd7 {[%clk 0:02:06]} 12. b4 {[%clk 0:02:52]}  axb4 {[%clk 0:02:06]} 13. axb4 {[%clk 0:02:52]}  cxb4 {[%clk 0:02:07]} 14. Nxb4 {[%clk 0:02:52]}  Nxb4 {[%clk 0:02:07]} 15. Rxb4 {[%clk 0:02:53]}  Bc6 {[%clk 0:02:08]} 16. Bd2 {[%clk 0:02:36]}  Re8 {[%clk 0:02:01]} 17. Qb3 {[%clk 0:02:00]}  e4 {[%clk 0:01:23]} 18. dxe4 {[%clk 0:01:48]}  Nxe4 {[%clk 0:01:23]} 19. Nxe4 {[%clk 0:01:48]}  Bxe4 {[%clk 0:01:24]} 20. Bxe4 {[%clk 0:01:47]}  Rxe4 {[%clk 0:01:24]} 21. Be3 {[%clk 0:01:39]}  Rc8 {[%clk 0:01:22]} 22. Rc1 {[%clk 0:01:25]}  d5 {[%clk 0:01:21]} 23. cxd5 {[%clk 0:01:08]}  Rxc1+ {[%clk 0:01:18]} 24. Bxc1 {[%clk 0:01:09]}  Rxb4 {[%clk 0:01:19]} 25. Qxb4 {[%clk 0:01:09]}  Qxd5 {[%clk 0:01:20]} 26. Bb2 {[%clk 0:00:38]}  Bxb2 {[%clk 0:01:10]} 27. Qxb2 {[%clk 0:00:38]}  b5 {[%clk 0:01:10]} 28. h4 {[%clk 0:00:33]}  h5 {[%clk 0:01:02]} 29. Kh2 {[%clk 0:00:27]}  Qc4 {[%clk 0:01:00]} 30. Qe5 {[%clk 0:00:23]}  b4 {[%clk 0:01:00]} 31. f4 {[%clk 0:00:19]}  b3 {[%clk 0:00:57]} 32. f5 {[%clk 0:00:19]}  gxf5 {[%clk 0:00:55]} 33. Qxf5 {[%clk 0:00:15]}  Qxe2+ {[%clk 0:00:55]} 34. Kg1 {[%clk 0:00:08]}  Qd1+ {[%clk 0:00:55]} 0-1


[Site "https://www.chess.com"]

[Event "Titled Tuesday Blitz July 4 Late 2023"]
[White "Shuvalova, Polina"]
[Black "Bortnyk, Olexandr"]
[WhiteFideId "24171760"]
[BlackFideId "14120828"]
[WhiteElo "2696"]
[BlackElo "3028"]
[Result "0-1"]
[Round "3"]
[TimeControl "180+2"]
[Date "2023.07.04"]
[WhiteClock "0:00:02"]
[BlackClock "0:00:04"]
[Board "9"]

1. e4 {[%clk 0:02:58]}  Nf6 {[%clk 0:02:59]} 2. e5 {[%clk 0:02:58]}  Nd5 {[%clk 0:02:59]} 3. d4 {[%clk 0:02:58]}  d6 {[%clk 0:02:59]} 4. exd6 {[%clk 0:02:58]}  exd6 {[%clk 0:03:00]} 5. Nf3 {[%clk 0:02:58]}  Be7 {[%clk 0:03:00]} 6. Bd3 {[%clk 0:02:58]}  O-O {[%clk 0:03:00]} 7. O-O {[%clk 0:02:59]}  Nb4 {[%clk 0:03:00]} 8. Be2 {[%clk 0:02:50]}  Bf5 {[%clk 0:03:00]} 9. Na3 {[%clk 0:02:51]}  Nd7 {[%clk 0:02:54]} 10. c3 {[%clk 0:02:51]}  Nc6 {[%clk 0:02:54]} 11. Nc2 {[%clk 0:02:50]}  Nf6 {[%clk 0:02:52]} 12. Bg5 {[%clk 0:02:48]}  h6 {[%clk 0:02:52]} 13. Bh4 {[%clk 0:02:47]}  Ne4 {[%clk 0:02:51]} 14. Bxe7 {[%clk 0:02:46]}  Nxe7 {[%clk 0:02:50]} 15. Ne3 {[%clk 0:02:47]}  Bh7 {[%clk 0:02:50]} 16. Bd3 {[%clk 0:02:46]}  c6 {[%clk 0:02:49]} 17. c4 {[%clk 0:02:40]}  Re8 {[%clk 0:02:24]} 18. Qc2 {[%clk 0:02:40]}  d5 {[%clk 0:02:24]} 19. Rfe1 {[%clk 0:02:34]}  Rc8 {[%clk 0:02:15]} 20. c5 {[%clk 0:02:25]}  Ng6 {[%clk 0:02:10]} 21. g3 {[%clk 0:02:14]}  Qf6 {[%clk 0:02:09]} 22. Kg2 {[%clk 0:02:11]}  Qe6 {[%clk 0:01:36]} 23. h4 {[%clk 0:01:48]}  f5 {[%clk 0:01:21]} 24. h5 {[%clk 0:01:41]}  Ne7 {[%clk 0:01:21]} 25. Ne5 {[%clk 0:01:37]}  f4 {[%clk 0:01:21]} 26. gxf4 {[%clk 0:01:28]}  Rf8 {[%clk 0:01:06]} 27. f3 {[%clk 0:01:20]}  Nf5 {[%clk 0:00:30]} 28. Nxf5 {[%clk 0:01:07]}  Qxf5 {[%clk 0:00:31]} 29. fxe4 {[%clk 0:00:55]}  Qxf4 {[%clk 0:00:31]} 30. Qe2 {[%clk 0:00:44]}  dxe4 {[%clk 0:00:27]} 31. Bc4+ {[%clk 0:00:30]}  Kh8 {[%clk 0:00:28]} 32. Qg4 {[%clk 0:00:30]}  Qf2+ {[%clk 0:00:23]} 33. Kh1 {[%clk 0:00:29]}  Bf5 {[%clk 0:00:16]} 34. Qg2 {[%clk 0:00:18]}  Qxd4 {[%clk 0:00:16]} 35. Nf7+ {[%clk 0:00:14]}  Kh7 {[%clk 0:00:17]} 36. Rg1 {[%clk 0:00:09]}  e3 {[%clk 0:00:07]} 37. Qg3 {[%clk 0:00:08]}  Rce8 {[%clk 0:00:02]} 38. Rad1 {[%clk 0:00:07]}  Qxb2 {[%clk 0:00:01]} 39. Rd6 {[%clk 0:00:03]}  Be4+ {[%clk 0:00:01]} 40. Rg2 {[%clk 0:00:03]}  Qxg2+ {[%clk 0:00:02]} 41. Qxg2 {[%clk 0:00:04]}  Bxg2+ {[%clk 0:00:03]} 42. Kxg2 {[%clk 0:00:05]}  e2 {[%clk 0:00:03]} 43. Bxe2 {[%clk 0:00:04]}  Rxe2+ {[%clk 0:00:04]} 44. Kf1 {[%clk 0:00:04]}  Re7 {[%clk 0:00:03]} 45. Kg2 {[%clk 0:00:04]}  Rexf7 {[%clk 0:00:04]} 46. Rd2 {[%clk 0:00:04]}  Rf5 {[%clk 0:00:04]} 47. Rc2 {[%clk 0:00:02]}  Rg5+ {[%clk 0:00:04]} 0-1


[Site "https://www.chess.com"]

[Event "Titled Tuesday Blitz July 4 Late 2023"]
[White "Matinian, Nikita"]
[Black "Martinez Alcantara, Jose Eduardo"]
[WhiteFideId "24129100"]
[BlackFideId "3805662"]
[WhiteElo "2692"]
[BlackElo "3018"]
[Result "0-1"]
[Round "3"]
[TimeControl "180+2"]
[Date "2023.07.04"]
[WhiteClock "0:00:00"]
[BlackClock "0:00:21"]
[Board "11"]

1. e4 {[%clk 0:03:00]}  c5 {[%clk 0:02:59]} 2. Nf3 {[%clk 0:03:00]}  d6 {[%clk 0:03:00]} 3. d4 {[%clk 0:03:01]}  cxd4 {[%clk 0:03:01]} 4. Nxd4 {[%clk 0:03:02]}  a6 {[%clk 0:03:02]} 5. Nc3 {[%clk 0:03:02]}  e6 {[%clk 0:03:03]} 6. Be2 {[%clk 0:03:00]}  b5 {[%clk 0:03:03]} 7. a3 {[%clk 0:02:58]}  Bb7 {[%clk 0:03:03]} 8. g4 {[%clk 0:02:57]}  Nf6 {[%clk 0:03:01]} 9. f3 {[%clk 0:02:54]}  Nfd7 {[%clk 0:02:59]} 10. Be3 {[%clk 0:02:51]}  Nb6 {[%clk 0:02:58]} 11. h4 {[%clk 0:02:49]}  N8d7 {[%clk 0:02:59]} 12. Nb3 {[%clk 0:02:31]}  Rc8 {[%clk 0:02:56]} 13. Na5 {[%clk 0:02:23]}  Ba8 {[%clk 0:02:54]} 14. Qd2 {[%clk 0:02:23]}  Qc7 {[%clk 0:02:50]} 15. O-O-O {[%clk 0:02:10]}  Be7 {[%clk 0:02:47]} 16. h5 {[%clk 0:02:08]}  h6 {[%clk 0:02:23]} 17. Rhg1 {[%clk 0:02:05]}  d5 {[%clk 0:02:14]} 18. exd5 {[%clk 0:02:02]}  Nxd5 {[%clk 0:02:15]} 19. Nxd5 {[%clk 0:02:02]}  Bxd5 {[%clk 0:02:16]} 20. Kb1 {[%clk 0:01:54]}  Ne5 {[%clk 0:01:21]} 21. f4 {[%clk 0:01:35]}  Nf3 {[%clk 0:01:12]} 22. Bxf3 {[%clk 0:01:35]}  Bxf3 {[%clk 0:01:12]} 23. Bb6 {[%clk 0:01:29]}  Qb8 {[%clk 0:00:54]} 24. Qd7+ {[%clk 0:01:28]}  Kf8 {[%clk 0:00:55]} 25. f5 {[%clk 0:00:54]}  Re8 {[%clk 0:00:47]} 26. Bc7 {[%clk 0:00:49]}  Qc8 {[%clk 0:00:46]} 27. fxe6 {[%clk 0:00:49]}  Bxd1 {[%clk 0:00:43]} 28. Rxd1 {[%clk 0:00:25]}  fxe6 {[%clk 0:00:43]} 29. Qc6 {[%clk 0:00:19]}  Kg8 {[%clk 0:00:43]} 30. Rd7 {[%clk 0:00:16]}  Bf6 {[%clk 0:00:27]} 31. Nb7 {[%clk 0:00:16]}  Qa8 {[%clk 0:00:27]} 32. Qe4 {[%clk 0:00:09]}  a5 {[%clk 0:00:28]} 33. c3 {[%clk 0:00:03]}  b4 {[%clk 0:00:28]} 34. Qg6 {[%clk 0:00:03]}  Rf8 {[%clk 0:00:28]} 35. Nd6 {[%clk 0:00:02]}  Qh1+ {[%clk 0:00:27]} 36. Ka2 {[%clk 0:00:02]}  Qd5+ {[%clk 0:00:28]} 37. c4 {[%clk 0:00:02]}  b3+ {[%clk 0:00:28]} 38. Kxb3 {[%clk 0:00:02]}  Qf3+ {[%clk 0:00:28]} 39. Ka2 {[%clk 0:00:02]}  Qg2 {[%clk 0:00:21]} 40. Kb3 {[%clk 0:00:01]}  a4+ {[%clk 0:00:20]} 41. Kxa4 {[%clk 0:00:01]}  Ra8+ {[%clk 0:00:21]} 42. Ba5 {[%clk 0:00:01]}  Qc6+ {[%clk 0:00:21]} 43. Nb5 {[%clk 0:00:00]}  Qxd7 {[%clk 0:00:21]} 0-1


[Site "https://www.chess.com"]

[Event "Titled Tuesday Blitz July 4 Late 2023"]
[White "Deac, Bogdan-Daniel"]
[Black "benny_aizenberg"]
[WhiteFideId "1226380"]
[WhiteElo "2998"]
[BlackElo "2686"]
[Result "1-0"]
[Round "3"]
[TimeControl "180+2"]
[Date "2023.07.04"]
[WhiteClock "0:01:20"]
[BlackClock "0:00:07"]
[Board "14"]

1. b3 {[%clk 0:03:00]}  e5 {[%clk 0:02:57]} 2. Bb2 {[%clk 0:03:01]}  Nc6 {[%clk 0:02:57]} 3. Nf3 {[%clk 0:03:02]}  e4 {[%clk 0:02:54]} 4. Nd4 {[%clk 0:03:02]}  Nxd4 {[%clk 0:02:49]} 5. Bxd4 {[%clk 0:03:03]}  d5 {[%clk 0:02:48]} 6. e3 {[%clk 0:03:02]}  Nf6 {[%clk 0:02:48]} 7. c4 {[%clk 0:03:02]}  Be7 {[%clk 0:02:44]} 8. Nc3 {[%clk 0:02:30]}  c6 {[%clk 0:02:36]} 9. cxd5 {[%clk 0:02:29]}  cxd5 {[%clk 0:02:37]} 10. f3 {[%clk 0:02:27]}  exf3 {[%clk 0:02:24]} 11. Qxf3 {[%clk 0:02:27]}  O-O {[%clk 0:02:21]} 12. Bd3 {[%clk 0:02:26]}  Bg4 {[%clk 0:02:11]} 13. Qg3 {[%clk 0:02:26]}  Bh5 {[%clk 0:02:10]} 14. O-O {[%clk 0:02:07]}  Bg6 {[%clk 0:02:08]} 15. Bf5 {[%clk 0:02:07]}  Bd6 {[%clk 0:01:23]} 16. Qf3 {[%clk 0:01:40]}  Bxf5 {[%clk 0:00:30]} 17. Qxf5 {[%clk 0:01:31]}  Be7 {[%clk 0:00:29]} 18. Rf3 {[%clk 0:01:22]}  g6 {[%clk 0:00:20]} 19. Qe5 {[%clk 0:01:21]}  Qd6 {[%clk 0:00:07]} 20. Qxd6 {[%clk 0:01:20]} 1-0


[Site "https://www.chess.com"]

[Event "Titled Tuesday Blitz July 4 Late 2023"]
[White "Stoleriu, George"]
[Black "He, Anthony"]
[WhiteFideId "1227505"]
[BlackFideId "2088215"]
[WhiteElo "2666"]
[BlackElo "2980"]
[Result "1-0"]
[Round "3"]
[TimeControl "180+2"]
[Date "2023.07.04"]
[WhiteClock "0:00:12"]
[BlackClock "0:00:08"]
[Board "16"]

1. e4 {[%clk 0:03:00]}  c5 {[%clk 0:02:57]} 2. Nc3 {[%clk 0:02:50]}  g6 {[%clk 0:02:57]} 3. d4 {[%clk 0:02:50]}  Bg7 {[%clk 0:02:57]} 4. dxc5 {[%clk 0:02:50]}  Bxc3+ {[%clk 0:02:56]} 5. bxc3 {[%clk 0:02:51]}  Qa5 {[%clk 0:02:56]} 6. Qd4 {[%clk 0:02:50]}  Nf6 {[%clk 0:02:55]} 7. Qb4 {[%clk 0:02:51]}  Qc7 {[%clk 0:02:56]} 8. Bd3 {[%clk 0:02:36]}  Nc6 {[%clk 0:02:56]} 9. Qc4 {[%clk 0:02:33]}  b6 {[%clk 0:02:56]} 10. cxb6 {[%clk 0:02:33]}  axb6 {[%clk 0:02:57]} 11. Bh6 {[%clk 0:02:27]}  Ba6 {[%clk 0:02:53]} 12. Qb3 {[%clk 0:02:25]}  Ng4 {[%clk 0:02:50]} 13. Bg7 {[%clk 0:02:16]}  Rg8 {[%clk 0:02:50]} 14. Bd4 {[%clk 0:02:16]}  b5 {[%clk 0:02:22]} 15. h3 {[%clk 0:02:13]}  Nge5 {[%clk 0:02:15]} 16. Ne2 {[%clk 0:02:11]}  Na5 {[%clk 0:02:03]} 17. Qb4 {[%clk 0:02:07]}  Nec6 {[%clk 0:02:01]} 18. Qb1 {[%clk 0:01:58]}  f6 {[%clk 0:01:43]} 19. O-O {[%clk 0:01:57]}  Kf7 {[%clk 0:01:44]} 20. a4 {[%clk 0:01:39]}  bxa4 {[%clk 0:01:33]} 21. Rxa4 {[%clk 0:01:40]}  e6 {[%clk 0:01:28]} 22. Qa2 {[%clk 0:01:38]}  Bb7 {[%clk 0:01:27]} 23. Ra1 {[%clk 0:01:37]}  Nxd4 {[%clk 0:01:23]} 24. cxd4 {[%clk 0:01:37]}  Nc6 {[%clk 0:01:23]} 25. Qb2 {[%clk 0:01:26]}  Rab8 {[%clk 0:01:22]} 26. Qc3 {[%clk 0:01:22]}  Rgc8 {[%clk 0:01:19]} 27. Rc4 {[%clk 0:01:21]}  Qd6 {[%clk 0:01:19]} 28. Kh1 {[%clk 0:01:00]}  Ne7 {[%clk 0:01:17]} 29. Rxc8 {[%clk 0:00:56]}  Rxc8 {[%clk 0:01:18]} 30. Qa3 {[%clk 0:00:56]}  Qc6 {[%clk 0:01:13]} 31. Rb1 {[%clk 0:00:51]}  Rc7 {[%clk 0:01:08]} 32. Qb3 {[%clk 0:00:46]}  Qd6 {[%clk 0:01:05]} 33. Qb4 {[%clk 0:00:44]}  Qxb4 {[%clk 0:00:55]} 34. Rxb4 {[%clk 0:00:45]}  f5 {[%clk 0:00:53]} 35. f3 {[%clk 0:00:44]}  Bc6 {[%clk 0:00:51]} 36. Kg1 {[%clk 0:00:41]}  Ra7 {[%clk 0:00:50]} 37. Kf2 {[%clk 0:00:41]}  Ra2 {[%clk 0:00:50]} 38. Nc3 {[%clk 0:00:39]}  Ra3 {[%clk 0:00:51]} 39. Nd1 {[%clk 0:00:30]}  Ra2 {[%clk 0:00:49]} 40. Ne3 {[%clk 0:00:28]}  Kf6 {[%clk 0:00:34]} 41. h4 {[%clk 0:00:25]}  h6 {[%clk 0:00:33]} 42. g4 {[%clk 0:00:22]}  fxe4 {[%clk 0:00:26]} 43. fxe4 {[%clk 0:00:23]}  h5 {[%clk 0:00:23]} 44. g5+ {[%clk 0:00:22]}  Kg7 {[%clk 0:00:23]} 45. Kg3 {[%clk 0:00:15]}  Ra1 {[%clk 0:00:21]} 46. Rb8 {[%clk 0:00:14]}  Rg1+ {[%clk 0:00:21]} 47. Kf2 {[%clk 0:00:15]}  Rh1 {[%clk 0:00:22]} 48. Kg3 {[%clk 0:00:14]}  Rg1+ {[%clk 0:00:22]} 49. Kh2 {[%clk 0:00:15]}  Re1 {[%clk 0:00:22]} 50. Ng2 {[%clk 0:00:15]}  Rc1 {[%clk 0:00:21]} 51. Kg3 {[%clk 0:00:15]}  Kf7 {[%clk 0:00:19]} 52. Nf4 {[%clk 0:00:15]}  Rg1+ {[%clk 0:00:19]} 53. Kf2 {[%clk 0:00:15]}  Rh1 {[%clk 0:00:19]} 54. Kg3 {[%clk 0:00:15]}  Rg1+ {[%clk 0:00:19]} 55. Kh2 {[%clk 0:00:15]}  Re1 {[%clk 0:00:19]} 56. d5 {[%clk 0:00:13]}  exd5 {[%clk 0:00:15]} 57. exd5 {[%clk 0:00:14]}  Ba4 {[%clk 0:00:07]} 58. d6 {[%clk 0:00:12]}  Nf5 {[%clk 0:00:07]} 59. Bxf5 {[%clk 0:00:13]}  gxf5 {[%clk 0:00:08]} 60. Nxh5 {[%clk 0:00:11]}  Bxc2 {[%clk 0:00:08]} 61. Nf6 {[%clk 0:00:10]}  Rd1 {[%clk 0:00:07]} 62. Nxd7 {[%clk 0:00:08]}  Rxd6 {[%clk 0:00:08]} 63. Ne5+ {[%clk 0:00:09]}  Ke6 {[%clk 0:00:09]} 64. Ng6 {[%clk 0:00:09]}  Rd2+ {[%clk 0:00:08]} 65. Kg3 {[%clk 0:00:09]}  Rd3+ {[%clk 0:00:09]} 66. Kf2 {[%clk 0:00:10]}  Rd2+ {[%clk 0:00:08]} 67. Ke3 {[%clk 0:00:10]}  Rd3+ {[%clk 0:00:09]} 68. Ke2 {[%clk 0:00:11]}  Rd4 {[%clk 0:00:08]} 69. Rb6+ {[%clk 0:00:10]}  Kd5 {[%clk 0:00:08]} 70. h5 {[%clk 0:00:08]}  f4 {[%clk 0:00:07]} 71. Ne7+ {[%clk 0:00:08]}  Kc5 {[%clk 0:00:04]} 72. Rf6 {[%clk 0:00:09]}  Bd3+ {[%clk 0:00:04]} 73. Kf2 {[%clk 0:00:09]}  Rb4 {[%clk 0:00:02]} 74. g6 {[%clk 0:00:09]}  Rb2+ {[%clk 0:00:03]} 75. Kf3 {[%clk 0:00:10]}  Be2+ {[%clk 0:00:03]} 76. Kxf4 {[%clk 0:00:10]}  Bxh5 {[%clk 0:00:04]} 77. g7 {[%clk 0:00:10]}  Rb4+ {[%clk 0:00:04]} 78. Kg5 {[%clk 0:00:10]}  Rg4+ {[%clk 0:00:05]} 79. Kh6 {[%clk 0:00:11]}  Rh4 {[%clk 0:00:04]} 80. Kg5 {[%clk 0:00:10]}  Rg4+ {[%clk 0:00:04]} 81. Kh6 {[%clk 0:00:10]}  Rh4 {[%clk 0:00:05]} 82. Nf5 {[%clk 0:00:11]}  Rh1 {[%clk 0:00:04]} 83. Kg5 {[%clk 0:00:07]}  Bf3 {[%clk 0:00:05]} 84. Ng3 {[%clk 0:00:06]}  Rg1 {[%clk 0:00:04]} 85. Kf4 {[%clk 0:00:07]}  Bd5 {[%clk 0:00:04]} 86. Rf5 {[%clk 0:00:07]}  Kd6 {[%clk 0:00:04]} 87. Rxd5+ {[%clk 0:00:08]}  Kxd5 {[%clk 0:00:05]} 88. g8=Q+ {[%clk 0:00:08]}  Kd4 {[%clk 0:00:05]} 89. Qd8+ {[%clk 0:00:08]}  Kc3 {[%clk 0:00:06]} 90. Kf3 {[%clk 0:00:09]}  Rc1 {[%clk 0:00:06]} 91. Ne2+ {[%clk 0:00:09]}  Kb3 {[%clk 0:00:06]} 92. Nxc1+ {[%clk 0:00:10]}  Ka4 {[%clk 0:00:07]} 93. Qb8 {[%clk 0:00:10]}  Ka5 {[%clk 0:00:07]} 94. Ke3 {[%clk 0:00:10]}  Ka6 {[%clk 0:00:06]} 95. Kd4 {[%clk 0:00:11]}  Ka5 {[%clk 0:00:07]} 96. Kc5 {[%clk 0:00:11]}  Ka4 {[%clk 0:00:08]} 97. Qb4# {[%clk 0:00:12]} 1-0


[Site "https://www.chess.com"]

[Event "Titled Tuesday Blitz July 4 Late 2023"]
[White "Fantastic_Power"]
[Black "Indjic, Aleksandar"]
[BlackFideId "911925"]
[WhiteElo "2665"]
[BlackElo "2971"]
[Result "1/2-1/2"]
[Round "3"]
[TimeControl "180+2"]
[Date "2023.07.04"]
[WhiteClock "0:00:04"]
[BlackClock "0:00:09"]
[Board "18"]

1. e4 {[%clk 0:02:55]}  e5 {[%clk 0:02:57]} 2. Nf3 {[%clk 0:02:55]}  Nc6 {[%clk 0:02:58]} 3. Bc4 {[%clk 0:02:55]}  Nf6 {[%clk 0:02:57]} 4. d4 {[%clk 0:02:55]}  exd4 {[%clk 0:02:55]} 5. O-O {[%clk 0:02:55]}  Nxe4 {[%clk 0:02:54]} 6. Re1 {[%clk 0:02:55]}  d5 {[%clk 0:02:55]} 7. Bxd5 {[%clk 0:02:56]}  Qxd5 {[%clk 0:02:54]} 8. Nc3 {[%clk 0:02:56]}  Qd7 {[%clk 0:02:53]} 9. Nxe4 {[%clk 0:02:56]}  Be7 {[%clk 0:02:53]} 10. Bg5 {[%clk 0:02:55]}  O-O {[%clk 0:02:52]} 11. Bxe7 {[%clk 0:02:55]}  Qxe7 {[%clk 0:02:53]} 12. Nxd4 {[%clk 0:02:55]}  Bd7 {[%clk 0:02:53]} 13. Nc3 {[%clk 0:02:56]}  Qd8 {[%clk 0:02:28]} 14. Re3 {[%clk 0:02:14]}  Nxd4 {[%clk 0:02:25]} 15. Qxd4 {[%clk 0:02:15]}  Be6 {[%clk 0:02:25]} 16. Rd1 {[%clk 0:02:13]}  Qxd4 {[%clk 0:02:24]} 17. Rxd4 {[%clk 0:02:13]}  Rfd8 {[%clk 0:02:24]} 18. Red3 {[%clk 0:02:12]}  Rxd4 {[%clk 0:02:24]} 19. Rxd4 {[%clk 0:02:13]}  c5 {[%clk 0:02:08]} 20. Rd2 {[%clk 0:02:10]}  Kf8 {[%clk 0:02:01]} 21. a3 {[%clk 0:02:05]}  Ke7 {[%clk 0:01:59]} 22. Ne4 {[%clk 0:02:03]}  b6 {[%clk 0:01:58]} 23. f3 {[%clk 0:02:00]}  h6 {[%clk 0:01:57]} 24. Kf2 {[%clk 0:02:00]}  g5 {[%clk 0:01:57]} 25. Nc3 {[%clk 0:01:55]}  Rd8 {[%clk 0:01:50]} 26. Rxd8 {[%clk 0:01:54]}  Kxd8 {[%clk 0:01:50]} 27. Ke3 {[%clk 0:01:50]}  Kd7 {[%clk 0:01:49]} 28. Ne4 {[%clk 0:01:48]}  f5 {[%clk 0:01:45]} 29. Nd2 {[%clk 0:01:43]}  f4+ {[%clk 0:01:42]} 30. Ke2 {[%clk 0:01:42]}  Bf5 {[%clk 0:01:41]} 31. c3 {[%clk 0:01:42]}  Kd6 {[%clk 0:01:36]} 32. Kf2 {[%clk 0:01:12]}  Bd3 {[%clk 0:01:34]} 33. g3 {[%clk 0:01:05]}  Ke5 {[%clk 0:01:33]} 34. g4 {[%clk 0:00:56]}  Kd5 {[%clk 0:01:31]} 35. Kg2 {[%clk 0:00:50]}  a5 {[%clk 0:01:29]} 36. h4 {[%clk 0:00:45]}  b5 {[%clk 0:01:28]} 37. hxg5 {[%clk 0:00:40]}  hxg5 {[%clk 0:01:29]} 38. Nb3 {[%clk 0:00:29]}  Bc2 {[%clk 0:00:16]} 39. Nxa5 {[%clk 0:00:08]}  c4 {[%clk 0:00:16]} 40. Kf2 {[%clk 0:00:04]}  Kd6 {[%clk 0:00:15]} 41. Nb7+ {[%clk 0:00:04]}  Kd5 {[%clk 0:00:14]} 42. Na5 {[%clk 0:00:05]}  Bg6 {[%clk 0:00:14]} 43. Ke2 {[%clk 0:00:02]}  Kc5 {[%clk 0:00:13]} 44. Nb7+ {[%clk 0:00:02]}  Kc6 {[%clk 0:00:12]} 45. Na5+ {[%clk 0:00:02]}  Kb6 {[%clk 0:00:12]} 46. b4 {[%clk 0:00:02]}  Bc2 {[%clk 0:00:09]} 47. Kf2 {[%clk 0:00:02]}  Bd1 {[%clk 0:00:09]} 48. Kg2 {[%clk 0:00:03]}  Kc7 {[%clk 0:00:08]} 49. Kf2 {[%clk 0:00:04]}  Kb6 {[%clk 0:00:08]} 50. Kg2 {[%clk 0:00:04]}  Kc7 {[%clk 0:00:08]} 51. Kf2 {[%clk 0:00:04]}  Kb6 {[%clk 0:00:09]} 1/2-1/2


[Site "https://www.chess.com"]